Workbook

Sheet Текущие данные
A1: № | B1: Номер Документа | C1: ФИО заявителя | D1: Дата поступления | E1: Исполнитель | F1: Срок исполнения | G1: Дата ответа | H1: Осталось дней на ответ | I1: Допконтроль СПб | J1: Осталось дней на контроль СПб | K1: Примечания | L1: В АРХИВ
A2: =SUM(A1,1) -> 1 | B2: 1845ж/14 | C2: цукйцк | D2: 2014-10-09 | E2: первый | F2: =IF(D2=0,"",D2+29) -> 2014-11-07 | H2: =IF(D2=0,"",SUM(F2,-TODAY())) -> -16 | J2: =IF(I2=0,"",SUM(I2,-TODAY())) -> 
A3: =SUM(A2,1) -> 2 | B3: 4086ж/14 | C3: афыв | D3: 2014-10-20 | E3: второй | F3: =IF(D3=0,"",D3+29) -> 2014-11-18 | H3: =IF(D3=0,"",SUM(F3,-TODAY())) -> -5 | J3: =IF(I3=0,"",SUM(I3,-TODAY())) -> 
A4: =SUM(A3,1) -> 3 | B4: 1936ж/14 | C4: фывафы | D4: 2014-10-20 | E4: третий | F4: =IF(D4=0,"",D4+29) -> 2014-11-18 | H4: =IF(D4=0,"",SUM(F4,-TODAY())) -> -5 | J4: =IF(I4=0,"",SUM(I4,-TODAY())) -> 
A5: =SUM(A4,1) -> 4 | B5: 2962ж/14 | C5: фывафыв | D5: 2014-10-21 | E5: Четвертый | F5: =IF(D5=0,"",D5+29) -> 2014-11-19 | H5: =IF(D5=0,"",SUM(F5,-TODAY())) -> -4 | J5: =IF(I5=0,"",SUM(I5,-TODAY())) ->  | N5: 2
A6: =SUM(A5,1) -> 5 | B6: 3103ж/14 | C6: фыва | D6: 2014-10-21 | E6: Второй | F6: =IF(D6=0,"",D6+29) -> 2014-11-19 | H6: =IF(D6=0,"",SUM(F6,-TODAY())) -> -4 | J6: =IF(I6=0,"",SUM(I6,-TODAY())) -> 
A7: =SUM(A6,1) -> 6 | B7: 4888ж/14 | C7: афыва | D7: 2014-10-21 | E7: Третий | F7: =IF(D7=0,"",D7+29) -> 2014-11-19 | H7: =IF(D7=0,"",SUM(F7,-TODAY())) -> -4 | J7: =IF(I7=0,"",SUM(I7,-TODAY())) -> 
A8: =SUM(A7,1) -> 7 | B8: 3058ж/14 | C8: фывафыв | D8: 2014-10-21 | E8: Второй | F8: =IF(D8=0,"",D8+29) -> 2014-11-19 | H8: =IF(D8=0,"",SUM(F8,-TODAY())) -> -4 | J8: =IF(I8=0,"",SUM(I8,-TODAY())) -> 
A9: =SUM(A8,1) -> 8 | B9: 4885ж/14 | C9: фыва | D9: 2014-10-21 | E9: Второй | F9: =IF(D9=0,"",D9+29) -> 2014-11-19 | H9: =IF(D9=0,"",SUM(F9,-TODAY())) -> -4 | J9: =IF(I9=0,"",SUM(I9,-TODAY())) -> 
A10: =SUM(A9,1) -> 9 | B10: 4902ж/14 | C10: фыва | D10: 2014-10-22 | E10: первый | F10: =IF(D10=0,"",D10+29) -> 2014-11-20 | H10: =IF(D10=0,"",SUM(F10,-TODAY())) -> -3 | J10: =IF(I10=0,"",SUM(I10,-TODAY())) -> 
A11: =SUM(A10,1) -> 10 | B11: 4893ж/14 | C11: фыва | D11: 2014-10-22 | E11: второй | F11: =IF(D11=0,"",D11+29) -> 2014-11-20 | H11: =IF(D11=0,"",SUM(F11,-TODAY())) -> -3 | J11: =IF(I11=0,"",SUM(I11,-TODAY())) -> 
A12: =SUM(A11,1) -> 11 | B12: 3928ж/13 | C12: фыва | D12: 2014-10-22 | E12: третий | F12: =IF(D12=0,"",D12+29) -> 2014-11-20 | H12: =IF(D12=0,"",SUM(F12,-TODAY())) -> -3 | J12: =IF(I12=0,"",SUM(I12,-TODAY())) -> 
A13: =SUM(A12,1) -> 12 | B13: 4612ж/14 | C13: фыва | D13: 2014-10-22 | E13: Четвертый | F13: =IF(D13=0,"",D13+29) -> 2014-11-20 | H13: =IF(D13=0,"",SUM(F13,-TODAY())) -> -3 | J13: =IF(I13=0,"",SUM(I13,-TODAY())) -> 
A14: =SUM(A13,1) -> 13 | B14: 1936ж/14 | C14: фыва | D14: 2014-10-22 | E14: Второй | F14: =IF(D14=0,"",D14+29) -> 2014-11-20 | H14: =IF(D14=0,"",SUM(F14,-TODAY())) -> -3 | J14: =IF(I14=0,"",SUM(I14,-TODAY())) -> 
A15: =SUM(A14,1) -> 14 | B15: 844ж/12 | C15: ывфа | D15: 2014-10-22 | E15: Третий | F15: =IF(D15=0,"",D15+29) -> 2014-11-20 | H15: =IF(D15=0,"",SUM(F15,-TODAY())) -> -3 | J15: =IF(I15=0,"",SUM(I15,-TODAY())) -> 
A16: =SUM(A15,1) -> 15 | B16: 4899ж/14 | C16: аыфва | D16: 2014-10-22 | E16: Второй | F16: =IF(D16=0,"",D16+29) -> 2014-11-20 | H16: =IF(D16=0,"",SUM(F16,-TODAY())) -> -3 | J16: =IF(I16=0,"",SUM(I16,-TODAY())) -> 
A17: =SUM(A16,1) -> 16 | B17: 3546ж/14 | C17: фыва | D17: 2014-10-22 | E17: Второй | F17: =IF(D17=0,"",D17+29) -> 2014-11-20 | H17: =IF(D17=0,"",SUM(F17,-TODAY())) -> -3 | J17: =IF(I17=0,"",SUM(I17,-TODAY())) -> 
A18: =SUM(A17,1) -> 17 | B18: 4898ж/14 | C18: фпф | D18: 2014-10-22 | E18: первый | F18: =IF(D18=0,"",D18+29) -> 2014-11-20 | H18: =IF(D18=0,"",SUM(F18,-TODAY())) -> -3 | J18: =IF(I18=0,"",SUM(I18,-TODAY())) -> 
A19: =SUM(A18,1) -> 18 | B19: 4905ж/14 | C19: павап | D19: 2014-10-23 | E19: второй | F19: =IF(D19=0,"",D19+29) -> 2014-11-21 | H19: =IF(D19=0,"",SUM(F19,-TODAY())) -> -2 | J19: =IF(I19=0,"",SUM(I19,-TODAY())) -> 
A20: =SUM(A19,1) -> 19 | B20: 306ж/14 | C20: павап | D20: 2014-10-23 | E20: третий | F20: =IF(D20=0,"",D20+29) -> 2014-11-21 | H20: =IF(D20=0,"",SUM(F20,-TODAY())) -> -2 | J20: =IF(I20=0,"",SUM(I20,-TODAY())) -> 
A21: =SUM(A20,1) -> 20 | B21: 3423ж/14 | C21: апва | D21: 2014-10-24 | E21: Четвертый | F21: =IF(D21=0,"",D21+29) -> 2014-11-22 | H21: =IF(D21=0,"",SUM(F21,-TODAY())) -> -1 | J21: =IF(I21=0,"",SUM(I21,-TODAY())) -> 
A22: =SUM(A21,1) -> 21 | B22: 1991ж/14 | C22: вапва | D22: 2014-10-27 | E22: Второй | F22: =IF(D22=0,"",D22+29) -> 2014-11-25 | H22: =IF(D22=0,"",SUM(F22,-TODAY())) -> 2 | J22: =IF(I22=0,"",SUM(I22,-TODAY())) -> 
A23: =SUM(A22,1) -> 22 | B23: 3226ж/12 | C23: апва | D23: 2014-10-27 | E23: Третий | F23: =IF(D23=0,"",D23+29) -> 2014-11-25 | H23: =IF(D23=0,"",SUM(F23,-TODAY())) -> 2 | J23: =IF(I23=0,"",SUM(I23,-TODAY())) -> 
A24: =SUM(A23,1) -> 23 | B24: 4758ж/14 | C24: авп | D24: 2014-10-27 | E24: Второй | F24: =IF(D24=0,"",D24+29) -> 2014-11-25 | H24: =IF(D24=0,"",SUM(F24,-TODAY())) -> 2 | J24: =IF(I24=0,"",SUM(I24,-TODAY())) -> 
A25: =SUM(A24,1) -> 24 | B25: 4919ж/14 | C25: авпы | D25: 2014-10-27 | E25: Второй | F25: =IF(D25=0,"",D25+29) -> 2014-11-25 | H25: =IF(D25=0,"",SUM(F25,-TODAY())) -> 2 | J25: =IF(I25=0,"",SUM(I25,-TODAY())) -> 
A26: =SUM(A25,1) -> 25 | B26: 238405 | C26: ыавпыва | D26: 2014-10-27 | E26: первый | F26: =IF(D26=0,"",D26+29) -> 2014-11-25 | H26: =IF(D26=0,"",SUM(F26,-TODAY())) -> 2 | J26: =IF(I26=0,"",SUM(I26,-TODAY())) -> 
A27: =SUM(A26,1) -> 26 | B27: 1013ж/13 | C27: ывапыва | D27: 2014-10-27 | E27: второй | F27: =IF(D27=0,"",D27+29) -> 2014-11-25 | H27: =IF(D27=0,"",SUM(F27,-TODAY())) -> 2 | J27: =IF(I27=0,"",SUM(I27,-TODAY())) -> 
A28: =SUM(A27,1) -> 27 | B28: 4212ж/14 | C28: ывапыва | D28: 2014-10-27 | E28: третий | F28: =IF(D28=0,"",D28+29) -> 2014-11-25 | H28: =IF(D28=0,"",SUM(F28,-TODAY())) -> 2 | J28: =IF(I28=0,"",SUM(I28,-TODAY())) -> 
A29: =SUM(A28,1) -> 28 | B29: 4213ж/14 | C29: ывапыва | D29: 2014-10-27 | E29: Четвертый | F29: =IF(D29=0,"",D29+29) -> 2014-11-25 | H29: =IF(D29=0,"",SUM(F29,-TODAY())) -> 2 | J29: =IF(I29=0,"",SUM(I29,-TODAY())) -> 
A30: =SUM(A29,1) -> 29 | B30: 4908ж/14 | C30: ыапыва | D30: 2014-10-28 | E30: Второй | F30: =IF(D30=0,"",D30+29) -> 2014-11-26 | H30: =IF(D30=0,"",SUM(F30,-TODAY())) -> 3 | J30: =IF(I30=0,"",SUM(I30,-TODAY())) -> 
A31: =SUM(A30,1) -> 30 | B31: 4857ж/14 | C31: ыпыв | D31: 2014-10-28 | E31: Третий | F31: =IF(D31=0,"",D31+29) -> 2014-11-26 | H31: =IF(D31=0,"",SUM(F31,-TODAY())) -> 3 | J31: =IF(I31=0,"",SUM(I31,-TODAY())) -> 
A32: =SUM(A31,1) -> 31 | B32: 1011ж/13 | C32: ывапывап | D32: 2014-10-29 | E32: Второй | F32: =IF(D32=0,"",D32+29) -> 2014-11-27 | H32: =IF(D32=0,"",SUM(F32,-TODAY())) -> 4 | J32: =IF(I32=0,"",SUM(I32,-TODAY())) -> 
A33: =SUM(A32,1) -> 32 | B33: 5025ж/14 | C33: ывапывап | D33: 2014-10-29 | E33: Второй | F33: =IF(D33=0,"",D33+29) -> 2014-11-27 | H33: =IF(D33=0,"",SUM(F33,-TODAY())) -> 4 | J33: =IF(I33=0,"",SUM(I33,-TODAY())) -> 
A34: =SUM(A33,1) -> 33 | B34: 5025ж/14 | C34: ывапвы | D34: 2014-10-29 | E34: третий | F34: =IF(D34=0,"",D34+29) -> 2014-11-27 | H34: =IF(D34=0,"",SUM(F34,-TODAY())) -> 4 | J34: =IF(I34=0,"",SUM(I34,-TODAY())) -> 
A35: =SUM(A34,1) -> 34 | B35: 4925ж/14 | C35: ывапыва | D35: 2014-10-29 | E35: Четвертый | F35: =IF(D35=0,"",D35+29) -> 2014-11-27 | H35: =IF(D35=0,"",SUM(F35,-TODAY())) -> 4 | J35: =IF(I35=0,"",SUM(I35,-TODAY())) -> 
A36: =SUM(A35,1) -> 35 | B36: 2083ж/14 | C36: ывпвыа | D36: 2014-10-29 | E36: Второй | F36: =IF(D36=0,"",D36+29) -> 2014-11-27 | H36: =IF(D36=0,"",SUM(F36,-TODAY())) -> 4 | J36: =IF(I36=0,"",SUM(I36,-TODAY())) -> 
A37: =SUM(A36,1) -> 36 | B37: 5002ж/14 | C37: ывапыва | D37: 2014-10-29 | E37: Третий | F37: =IF(D37=0,"",D37+29) -> 2014-11-27 | H37: =IF(D37=0,"",SUM(F37,-TODAY())) -> 4 | J37: =IF(I37=0,"",SUM(I37,-TODAY())) -> 
A38: =SUM(A37,1) -> 37 | B38: 238345 | C38: ывапваып | D38: 2014-10-29 | E38: Второй | F38: =IF(D38=0,"",D38+29) -> 2014-11-27 | H38: =IF(D38=0,"",SUM(F38,-TODAY())) -> 4 | J38: =IF(I38=0,"",SUM(I38,-TODAY())) -> 
A39: =SUM(A38,1) -> 38 | B39: 186871 | C39: ывпы | D39: 2014-10-29 | E39: Второй | F39: =IF(D39=0,"",D39+29) -> 2014-11-27 | H39: =IF(D39=0,"",SUM(F39,-TODAY())) -> 4 | J39: =IF(I39=0,"",SUM(I39,-TODAY())) -> 
A40: =SUM(A39,1) -> 39 | B40: 359ж/11 | C40: ывпыва | D40: 2014-10-29 | E40: первый | F40: =IF(D40=0,"",D40+29) -> 2014-11-27 | H40: =IF(D40=0,"",SUM(F40,-TODAY())) -> 4 | J40: =IF(I40=0,"",SUM(I40,-TODAY())) -> 
A41: =SUM(A40,1) -> 40 | B41: 5026ж/14 | C41: ывапыва | D41: 2014-10-29 | E41: второй | F41: =IF(D41=0,"",D41+29) -> 2014-11-27 | H41: =IF(D41=0,"",SUM(F41,-TODAY())) -> 4 | J41: =IF(I41=0,"",SUM(I41,-TODAY())) -> 
A42: =SUM(A41,1) -> 41 | B42: 5055ж/14 | C42: ывапыва | D42: 2014-10-30 | E42: третий | F42: =IF(D42=0,"",D42+29) -> 2014-11-28 | H42: =IF(D42=0,"",SUM(F42,-TODAY())) -> 5 | J42: =IF(I42=0,"",SUM(I42,-TODAY())) -> 
A43: =SUM(A42,1) -> 42 | B43: 2ж/14 | C43: ывапыва | D43: 2014-10-30 | E43: Четвертый | F43: =IF(D43=0,"",D43+29) -> 2014-11-28 | H43: =IF(D43=0,"",SUM(F43,-TODAY())) -> 5 | J43: =IF(I43=0,"",SUM(I43,-TODAY())) -> 
A44: =SUM(A43,1) -> 43 | B44: 5056ж/14 | C44: ывапвыап | D44: 2014-10-30 | E44: Второй | F44: =IF(D44=0,"",D44+29) -> 2014-11-28 | H44: =IF(D44=0,"",SUM(F44,-TODAY())) -> 5 | J44: =IF(I44=0,"",SUM(I44,-TODAY())) -> 
A45: =SUM(A44,1) -> 44 | B45: 3904ж/14 | C45: ывапыва | D45: 2014-10-30 | E45: Третий | F45: =IF(D45=0,"",D45+29) -> 2014-11-28 | H45: =IF(D45=0,"",SUM(F45,-TODAY())) -> 5 | J45: =IF(I45=0,"",SUM(I45,-TODAY())) -> 
A46: =SUM(A45,1) -> 45 | B46: 94936 | C46: ывап | D46: 2014-10-31 | E46: Второй | F46: =IF(D46=0,"",D46+29) -> 2014-11-29 | H46: =IF(D46=0,"",SUM(F46,-TODAY())) -> 6 | J46: =IF(I46=0,"",SUM(I46,-TODAY())) -> 
A47: =SUM(A46,1) -> 46 | B47: 5060ж/14 | C47: ывапыва | D47: 2014-10-31 | E47: Второй | F47: =IF(D47=0,"",D47+29) -> 2014-11-29 | H47: =IF(D47=0,"",SUM(F47,-TODAY())) -> 6 | J47: =IF(I47=0,"",SUM(I47,-TODAY())) -> 
A48: =SUM(A47,1) -> 47 | B48: 5057ж/14 | C48: ывапыва | D48: 2014-10-31 | E48: первый | F48: =IF(D48=0,"",D48+29) -> 2014-11-29 | H48: =IF(D48=0,"",SUM(F48,-TODAY())) -> 6 | J48: =IF(I48=0,"",SUM(I48,-TODAY())) -> 
A49: =SUM(A48,1) -> 48 | B49: 1790ж/13 | C49: ывапвыап | D49: 2014-10-31 | E49: второй | F49: =IF(D49=0,"",D49+29) -> 2014-11-29 | H49: =IF(D49=0,"",SUM(F49,-TODAY())) -> 6 | J49: =IF(I49=0,"",SUM(I49,-TODAY())) -> 
A50: =SUM(A49,1) -> 49 | B50: 4592ж/14 | C50: ывапвыап | D50: 2014-10-31 | E50: третий | F50: =IF(D50=0,"",D50+29) -> 2014-11-29 | H50: =IF(D50=0,"",SUM(F50,-TODAY())) -> 6 | J50: =IF(I50=0,"",SUM(I50,-TODAY())) -> 
A51: =SUM(A50,1) -> 50 | B51: 5189ж/14 | C51: ывапвап | D51: 2014-10-31 | E51: Четвертый | F51: =IF(D51=0,"",D51+29) -> 2014-11-29 | H51: =IF(D51=0,"",SUM(F51,-TODAY())) -> 6 | J51: =IF(I51=0,"",SUM(I51,-TODAY())) -> 
A52: =SUM(A51,1) -> 51 | B52: 5190ж/14 | C52: ывпвыап | D52: 2014-11-05 | E52: Второй | F52: =IF(D52=0,"",D52+29) -> 2014-12-04 | H52: =IF(D52=0,"",SUM(F52,-TODAY())) -> 11 | J52: =IF(I52=0,"",SUM(I52,-TODAY())) -> 
A53: =SUM(A52,1) -> 52 | B53: 5192ж/14 | C53: ывпвыа | D53: 2014-11-05 | E53: Третий | F53: =IF(D53=0,"",D53+29) -> 2014-12-04 | H53: =IF(D53=0,"",SUM(F53,-TODAY())) -> 11 | J53: =IF(I53=0,"",SUM(I53,-TODAY())) -> 
A54: =SUM(A53,1) -> 53 | B54: 2362ж/14 | C54: ывапвыап | D54: 2014-11-06 | E54: Второй | F54: =IF(D54=0,"",D54+29) -> 2014-12-05 | H54: =IF(D54=0,"",SUM(F54,-TODAY())) -> 12 | J54: =IF(I54=0,"",SUM(I54,-TODAY())) -> 
A55: =SUM(A54,1) -> 54 | B55: 5200ж/14 | C55: ывапвыап | D55: 2014-11-06 | E55: Второй | F55: =IF(D55=0,"",D55+29) -> 2014-12-05 | H55: =IF(D55=0,"",SUM(F55,-TODAY())) -> 12 | J55: =IF(I55=0,"",SUM(I55,-TODAY())) -> 
A56: =SUM(A55,1) -> 55 | B56: 1936ж/14 | C56: ывпваы | D56: 2014-11-06 | E56: третий | F56: =IF(D56=0,"",D56+29) -> 2014-12-05 | H56: =IF(D56=0,"",SUM(F56,-TODAY())) -> 12 | J56: =IF(I56=0,"",SUM(I56,-TODAY())) -> 
A57: =SUM(A56,1) -> 56 | B57: 4627ж/14 | C57: ывп | D57: 2014-11-06 | E57: Четвертый | F57: =IF(D57=0,"",D57+29) -> 2014-12-05 | H57: =IF(D57=0,"",SUM(F57,-TODAY())) -> 12 | J57: =IF(I57=0,"",SUM(I57,-TODAY())) -> 
A58: =SUM(A57,1) -> 57 | B58: 5202ж/14 | C58: ывпыва | D58: 2014-11-06 | E58: Второй | F58: =IF(D58=0,"",D58+29) -> 2014-12-05 | H58: =IF(D58=0,"",SUM(F58,-TODAY())) -> 12 | J58: =IF(I58=0,"",SUM(I58,-TODAY())) -> 
A59: =SUM(A58,1) -> 58 | B59: 2780ж/14 | C59: ывапвып | D59: 2014-11-06 | E59: Третий | F59: =IF(D59=0,"",D59+29) -> 2014-12-05 | H59: =IF(D59=0,"",SUM(F59,-TODAY())) -> 12 | J59: =IF(I59=0,"",SUM(I59,-TODAY())) -> 
A60: =SUM(A59,1) -> 59 | B60: 5219ж/14 | C60: ывапыв | D60: 2014-11-07 | E60: Второй | F60: =IF(D60=0,"",D60+29) -> 2014-12-06 | H60: =IF(D60=0,"",SUM(F60,-TODAY())) -> 13 | J60: =IF(I60=0,"",SUM(I60,-TODAY())) -> 
A61: =SUM(A60,1) -> 60 | B61: 306ж/14 | C61: ывп | D61: 2014-11-07 | E61: Второй | F61: =IF(D61=0,"",D61+29) -> 2014-12-06 | H61: =IF(D61=0,"",SUM(F61,-TODAY())) -> 13 | J61: =IF(I61=0,"",SUM(I61,-TODAY())) -> 
A62: =SUM(A61,1) -> 61 | B62: 2773ж/14 | C62: ывап | D62: 2014-11-07 | E62: первый | F62: =IF(D62=0,"",D62+29) -> 2014-12-06 | H62: =IF(D62=0,"",SUM(F62,-TODAY())) -> 13 | J62: =IF(I62=0,"",SUM(I62,-TODAY())) -> 
A63: =SUM(A62,1) -> 62 | B63: 211ж/05 | C63: ывп | D63: 2014-11-07 | E63: второй | F63: =IF(D63=0,"",D63+29) -> 2014-12-06 | H63: =IF(D63=0,"",SUM(F63,-TODAY())) -> 13 | J63: =IF(I63=0,"",SUM(I63,-TODAY())) -> 
A64: =SUM(A63,1) -> 63 | B64: 36ж/09 | C64: ывпвы | D64: 2014-11-07 | E64: третий | F64: =IF(D64=0,"",D64+29) -> 2014-12-06 | H64: =IF(D64=0,"",SUM(F64,-TODAY())) -> 13 | J64: =IF(I64=0,"",SUM(I64,-TODAY())) -> 
A65: =SUM(A64,1) -> 64 | B65: 395592 | C65: ывп | D65: 2014-11-10 | E65: Четвертый | F65: =IF(D65=0,"",D65+29) -> 2014-12-09 | H65: =IF(D65=0,"",SUM(F65,-TODAY())) -> 16 | J65: =IF(I65=0,"",SUM(I65,-TODAY())) -> 
A66: =SUM(A65,1) -> 65 | B66: 3218ж/14 | C66: ывп | D66: 2014-11-10 | E66: Второй | F66: =IF(D66=0,"",D66+29) -> 2014-12-09 | H66: =IF(D66=0,"",SUM(F66,-TODAY())) -> 16 | J66: =IF(I66=0,"",SUM(I66,-TODAY())) -> 
A67: =SUM(A66,1) -> 66 | B67: 5343ж/14 | C67: ывп | D67: 2014-11-10 | E67: Третий | F67: =IF(D67=0,"",D67+29) -> 2014-12-09 | H67: =IF(D67=0,"",SUM(F67,-TODAY())) -> 16 | J67: =IF(I67=0,"",SUM(I67,-TODAY())) -> 
A68: =SUM(A67,1) -> 67 | B68: 3979ж/14 | C68: ывп | D68: 2014-11-11 | E68: Второй | F68: =IF(D68=0,"",D68+29) -> 2014-12-10 | H68: =IF(D68=0,"",SUM(F68,-TODAY())) -> 17 | J68: =IF(I68=0,"",SUM(I68,-TODAY())) -> 
A69: =SUM(A68,1) -> 68 | B69: 5058ж/14 | C69: впыывап | D69: 2014-11-12 | E69: Второй | F69: =IF(D69=0,"",D69+29) -> 2014-12-11 | H69: =IF(D69=0,"",SUM(F69,-TODAY())) -> 18 | J69: =IF(I69=0,"",SUM(I69,-TODAY())) -> 
A70: =SUM(A69,1) -> 69 | B70: 5347ж/14 | C70: ывап | D70: 2014-11-12 | E70: первый | F70: =IF(D70=0,"",D70+29) -> 2014-12-11 | H70: =IF(D70=0,"",SUM(F70,-TODAY())) -> 18 | J70: =IF(I70=0,"",SUM(I70,-TODAY())) -> 
A71: =SUM(A70,1) -> 70 | B71: 64ж/14 | C71: впыывап | D71: 2014-11-12 | E71: третий | F71: =IF(D71=0,"",D71+29) -> 2014-12-11 | H71: =IF(D71=0,"",SUM(F71,-TODAY())) -> 18 | J71: =IF(I71=0,"",SUM(I71,-TODAY())) -> 
A72: =SUM(A71,1) -> 71 | B72: 4605ж/14 | C72: ывп | D72: 2014-11-12 | E72: Четвертый | F72: =IF(D72=0,"",D72+29) -> 2014-12-11 | H72: =IF(D72=0,"",SUM(F72,-TODAY())) -> 18 | J72: =IF(I72=0,"",SUM(I72,-TODAY())) -> 
A73: =SUM(A72,1) -> 72 | B73: 514ж/12 | C73: п | D73: 2014-11-12 | E73: Второй | F73: =IF(D73=0,"",D73+29) -> 2014-12-11 | H73: =IF(D73=0,"",SUM(F73,-TODAY())) -> 18 | J73: =IF(I73=0,"",SUM(I73,-TODAY())) -> 
A74: =SUM(A73,1) -> 73 | B74: 5353ж/14 | C74: впыывап | D74: 2014-11-12 | E74: Третий | F74: =IF(D74=0,"",D74+29) -> 2014-12-11 | H74: =IF(D74=0,"",SUM(F74,-TODAY())) -> 18 | J74: =IF(I74=0,"",SUM(I74,-TODAY())) -> 
A75: =SUM(A74,1) -> 74 | B75: 4639ж/14 | C75: ыпв | D75: 2014-11-12 | E75: Второй | F75: =IF(D75=0,"",D75+29) -> 2014-12-11 | H75: =IF(D75=0,"",SUM(F75,-TODAY())) -> 18 | J75: =IF(I75=0,"",SUM(I75,-TODAY())) -> 
A76: =SUM(A75,1) -> 75 | B76: 211ж/05 | C76: ывп | D76: 2014-11-12 | E76: Второй | F76: =IF(D76=0,"",D76+29) -> 2014-12-11 | H76: =IF(D76=0,"",SUM(F76,-TODAY())) -> 18 | J76: =IF(I76=0,"",SUM(I76,-TODAY())) -> 
A77: =SUM(A76,1) -> 76 | B77: 24ж/14 | C77: вып | D77: 2014-11-12 | E77: первый | F77: =IF(D77=0,"",D77+29) -> 2014-12-11 | H77: =IF(D77=0,"",SUM(F77,-TODAY())) -> 18 | J77: =IF(I77=0,"",SUM(I77,-TODAY())) -> 
A78: =SUM(A77,1) -> 77 | B78: 5349ж/14 | C78: ывпы | D78: 2014-11-12 | E78: второй | F78: =IF(D78=0,"",D78+29) -> 2014-12-11 | H78: =IF(D78=0,"",SUM(F78,-TODAY())) -> 18 | J78: =IF(I78=0,"",SUM(I78,-TODAY())) -> 
A79: =SUM(A78,1) -> 78 | B79: 5348ж/14 | C79: пыв | D79: 2014-11-12 | E79: третий | F79: =IF(D79=0,"",D79+29) -> 2014-12-11 | H79: =IF(D79=0,"",SUM(F79,-TODAY())) -> 18 | J79: =IF(I79=0,"",SUM(I79,-TODAY())) -> 
A80: =SUM(A79,1) -> 79 | B80: 1966ж/14 | C80: пыв | D80: 2014-11-12 | E80: Четвертый | F80: =IF(D80=0,"",D80+29) -> 2014-12-11 | H80: =IF(D80=0,"",SUM(F80,-TODAY())) -> 18 | J80: =IF(I80=0,"",SUM(I80,-TODAY())) -> 
A81: =SUM(A80,1) -> 80 | B81: 4394ж/14 | C81: пыва | D81: 2014-11-13 | E81: Второй | F81: =IF(D81=0,"",D81+29) -> 2014-12-12 | H81: =IF(D81=0,"",SUM(F81,-TODAY())) -> 19 | J81: =IF(I81=0,"",SUM(I81,-TODAY())) -> 
A82: =SUM(A81,1) -> 81 | B82: 18ж/13 | C82: пыв | D82: 2014-11-13 | E82: Третий | F82: =IF(D82=0,"",D82+29) -> 2014-12-12 | H82: =IF(D82=0,"",SUM(F82,-TODAY())) -> 19 | J82: =IF(I82=0,"",SUM(I82,-TODAY())) -> 
A83: =SUM(A82,1) -> 82 | B83: 5361ж/14 | C83: ывап | D83: 2014-11-13 | E83: Второй | F83: =IF(D83=0,"",D83+29) -> 2014-12-12 | H83: =IF(D83=0,"",SUM(F83,-TODAY())) -> 19 | J83: =IF(I83=0,"",SUM(I83,-TODAY())) -> 
A84: =SUM(A83,1) -> 83 | B84: 5362ж/14 | C84: ывп | D84: 2014-11-13 | E84: Второй | F84: =IF(D84=0,"",D84+29) -> 2014-12-12 | H84: =IF(D84=0,"",SUM(F84,-TODAY())) -> 19 | J84: =IF(I84=0,"",SUM(I84,-TODAY())) -> 
A85: =SUM(A84,1) -> 84 | B85: 3058ж/14 | C85: ывап | D85: 2014-11-13 | E85: первый | F85: =IF(D85=0,"",D85+29) -> 2014-12-12 | H85: =IF(D85=0,"",SUM(F85,-TODAY())) -> 19 | J85: =IF(I85=0,"",SUM(I85,-TODAY())) -> 
A86: =SUM(A85,1) -> 85 | B86: 4212ж/14 | C86: ывпыпв | D86: 2014-11-14 | E86: второй | F86: =IF(D86=0,"",D86+29) -> 2014-12-13 | H86: =IF(D86=0,"",SUM(F86,-TODAY())) -> 20 | J86: =IF(I86=0,"",SUM(I86,-TODAY())) -> 
A87: =SUM(A86,1) -> 86 | B87: 5370ж/14 | C87: ывп | D87: 2014-11-14 | E87: третий | F87: =IF(D87=0,"",D87+29) -> 2014-12-13 | H87: =IF(D87=0,"",SUM(F87,-TODAY())) -> 20 | J87: =IF(I87=0,"",SUM(I87,-TODAY())) -> 
A88: =SUM(A87,1) -> 87 | B88: 322ж/11 | C88: ывп | D88: 2014-11-14 | E88: Четвертый | F88: =IF(D88=0,"",D88+29) -> 2014-12-13 | H88: =IF(D88=0,"",SUM(F88,-TODAY())) -> 20 | J88: =IF(I88=0,"",SUM(I88,-TODAY())) -> 
A89: =SUM(A88,1) -> 88 | B89: 5363ж/14 | C89: ывпывап | D89: 2014-11-14 | E89: Второй | F89: =IF(D89=0,"",D89+29) -> 2014-12-13 | H89: =IF(D89=0,"",SUM(F89,-TODAY())) -> 20 | J89: =IF(I89=0,"",SUM(I89,-TODAY())) -> 
A90: =SUM(A89,1) -> 89 | B90: 2133ж/14 | C90: ывп | D90: 2014-11-14 | E90: Третий | F90: =IF(D90=0,"",D90+29) -> 2014-12-13 | H90: =IF(D90=0,"",SUM(F90,-TODAY())) -> 20 | J90: =IF(I90=0,"",SUM(I90,-TODAY())) -> 
A91: =SUM(A90,1) -> 90 | B91: 5371ж/14 | C91: ывп | D91: 2014-11-14 | E91: Второй | F91: =IF(D91=0,"",D91+29) -> 2014-12-13 | H91: =IF(D91=0,"",SUM(F91,-TODAY())) -> 20 | J91: =IF(I91=0,"",SUM(I91,-TODAY())) -> 
A92: =SUM(A91,1) -> 91 | B92: 5364ж/14 | C92: ывп | D92: 2014-11-14 | E92: третий | F92: =IF(D92=0,"",D92+29) -> 2014-12-13 | H92: =IF(D92=0,"",SUM(F92,-TODAY())) -> 20 | J92: =IF(I92=0,"",SUM(I92,-TODAY())) -> 
A93: =SUM(A92,1) -> 92 | B93: 5366ж/14 | C93: ывп | D93: 2014-11-14 | E93: Четвертый | F93: =IF(D93=0,"",D93+29) -> 2014-12-13 | H93: =IF(D93=0,"",SUM(F93,-TODAY())) -> 20 | J93: =IF(I93=0,"",SUM(I93,-TODAY())) -> 
A94: =SUM(A93,1) -> 93 | B94: 4450ж/14 | C94: ывп | D94: 2014-11-14 | E94: Второй | F94: =IF(D94=0,"",D94+29) -> 2014-12-13 | H94: =IF(D94=0,"",SUM(F94,-TODAY())) -> 20 | J94: =IF(I94=0,"",SUM(I94,-TODAY())) -> 
A95: =SUM(A94,1) -> 94 | B95: 5372ж/14 | C95: ывп | D95: 2014-11-14 | E95: Третий | F95: =IF(D95=0,"",D95+29) -> 2014-12-13 | H95: =IF(D95=0,"",SUM(F95,-TODAY())) -> 20 | J95: =IF(I95=0,"",SUM(I95,-TODAY())) -> 
A96: =SUM(A95,1) -> 95 | B96: 5365ж/14 | C96: ывп | D96: 2014-11-14 | E96: Второй | F96: =IF(D96=0,"",D96+29) -> 2014-12-13 | H96: =IF(D96=0,"",SUM(F96,-TODAY())) -> 20 | J96: =IF(I96=0,"",SUM(I96,-TODAY())) -> 
A97: =SUM(A96,1) -> 96 | B97: 5367ж/14 | C97: ывп | D97: 2014-11-14 | E97: Второй | F97: =IF(D97=0,"",D97+29) -> 2014-12-13 | H97: =IF(D97=0,"",SUM(F97,-TODAY())) -> 20 | J97: =IF(I97=0,"",SUM(I97,-TODAY())) -> 
A98: =SUM(A97,1) -> 97 | B98: 5369ж/14 | C98: ывап | D98: 2014-11-14 | E98: первый | F98: =IF(D98=0,"",D98+29) -> 2014-12-13 | H98: =IF(D98=0,"",SUM(F98,-TODAY())) -> 20 | J98: =IF(I98=0,"",SUM(I98,-TODAY())) -> 
A99: =SUM(A98,1) -> 98 | B99: 24ж/14 | C99: ывп | D99: 2014-11-14 | E99: второй | F99: =IF(D99=0,"",D99+29) -> 2014-12-13 | H99: =IF(D99=0,"",SUM(F99,-TODAY())) -> 20 | J99: =IF(I99=0,"",SUM(I99,-TODAY())) -> 
A100: =SUM(A99,1) -> 99 | B100: 4213ж/14 | C100: ывап | D100: 2014-11-14 | E100: третий | F100: =IF(D100=0,"",D100+29) -> 2014-12-13 | H100: =IF(D100=0,"",SUM(F100,-TODAY())) -> 20 | J100: =IF(I100=0,"",SUM(I100,-TODAY())) -> 
A101: =SUM(A100,1) -> 100 | B101: 5196ж/14 | C101: ывап | D101: 2014-11-14 | E101: Четвертый | F101: =IF(D101=0,"",D101+29) -> 2014-12-13 | H101: =IF(D101=0,"",SUM(F101,-TODAY())) -> 20 | J101: =IF(I101=0,"",SUM(I101,-TODAY())) -> 
A102: =SUM(A101,1) -> 101 | B102: 5345ж/14 | C102: ывап | D102: 2014-11-14 | E102: Второй | F102: =IF(D102=0,"",D102+29) -> 2014-12-13 | H102: =IF(D102=0,"",SUM(F102,-TODAY())) -> 20 | J102: =IF(I102=0,"",SUM(I102,-TODAY())) -> 
A103: =SUM(A102,1) -> 102 | B103: 4566ж/14 | C103: вап | D103: 2014-11-17 | E103: Третий | F103: =IF(D103=0,"",D103+29) -> 2014-12-16 | H103: =IF(D103=0,"",SUM(F103,-TODAY())) -> 23 | J103: =IF(I103=0,"",SUM(I103,-TODAY())) -> 
A104: =SUM(A103,1) -> 103 | B104: 5374ж/14 | C104: вып | D104: 2014-11-17 | E104: Второй | F104: =IF(D104=0,"",D104+29) -> 2014-12-16 | H104: =IF(D104=0,"",SUM(F104,-TODAY())) -> 23 | J104: =IF(I104=0,"",SUM(I104,-TODAY())) -> 
A105: =SUM(A104,1) -> 104 | B105: 5377ж/14 | C105: вап | D105: 2014-11-17 | E105: Второй | F105: =IF(D105=0,"",D105+29) -> 2014-12-16 | H105: =IF(D105=0,"",SUM(F105,-TODAY())) -> 23 | J105: =IF(I105=0,"",SUM(I105,-TODAY())) -> 
A106: =SUM(A105,1) -> 105 | F106: =IF(D106=0,"",D106+29) ->  | H106: =IF(D106=0,"",SUM(F106,-TODAY())) ->  | J106: =IF(I106=0,"",SUM(I106,-TODAY())) -> 
A107: =SUM(A106,1) -> 106 | F107: =IF(D107=0,"",D107+29) ->  | H107: =IF(D107=0,"",SUM(F107,-TODAY())) ->  | J107: =IF(I107=0,"",SUM(I107,-TODAY())) -> 
A108: =SUM(A107,1) -> 107 | F108: =IF(D108=0,"",D108+29) ->  | H108: =IF(D108=0,"",SUM(F108,-TODAY())) ->  | J108: =IF(I108=0,"",SUM(I108,-TODAY())) -> 
A109: =SUM(A108,1) -> 108 | F109: =IF(D109=0,"",D109+29) ->  | H109: =IF(D109=0,"",SUM(F109,-TODAY())) ->  | J109: =IF(I109=0,"",SUM(I109,-TODAY())) -> 
A110: =SUM(A109,1) -> 109 | F110: =IF(D110=0,"",D110+29) ->  | H110: =IF(D110=0,"",SUM(F110,-TODAY())) ->  | J110: =IF(I110=0,"",SUM(I110,-TODAY())) -> 
A111: =SUM(A110,1) -> 110 | F111: =IF(D111=0,"",D111+29) ->  | H111: =IF(D111=0,"",SUM(F111,-TODAY())) ->  | J111: =IF(I111=0,"",SUM(I111,-TODAY())) -> 
A112: =SUM(A111,1) -> 111 | F112: =IF(D112=0,"",D112+29) ->  | H112: =IF(D112=0,"",SUM(F112,-TODAY())) ->  | J112: =IF(I112=0,"",SUM(I112,-TODAY())) -> 
A113: =SUM(A112,1) -> 112 | F113: =IF(D113=0,"",D113+29) ->  | H113: =IF(D113=0,"",SUM(F113,-TODAY())) ->  | J113: =IF(I113=0,"",SUM(I113,-TODAY())) -> 
A114: =SUM(A113,1) -> 113 | F114: =IF(D114=0,"",D114+29) ->  | H114: =IF(D114=0,"",SUM(F114,-TODAY())) ->  | J114: =IF(I114=0,"",SUM(I114,-TODAY())) -> 
A115: =SUM(A114,1) -> 114 | F115: =IF(D115=0,"",D115+29) ->  | H115: =IF(D115=0,"",SUM(F115,-TODAY())) ->  | J115: =IF(I115=0,"",SUM(I115,-TODAY())) -> 
A116: =SUM(A115,1) -> 115 | F116: =IF(D116=0,"",D116+29) ->  | H116: =IF(D116=0,"",SUM(F116,-TODAY())) ->  | J116: =IF(I116=0,"",SUM(I116,-TODAY())) -> 
A117: =SUM(A116,1) -> 116 | F117: =IF(D117=0,"",D117+29) ->  | H117: =IF(D117=0,"",SUM(F117,-TODAY())) ->  | J117: =IF(I117=0,"",SUM(I117,-TODAY())) -> 
A118: =SUM(A117,1) -> 117 | F118: =IF(D118=0,"",D118+29) ->  | H118: =IF(D118=0,"",SUM(F118,-TODAY())) ->  | J118: =IF(I118=0,"",SUM(I118,-TODAY())) -> 
A119: =SUM(A118,1) -> 118 | F119: =IF(D119=0,"",D119+29) ->  | H119: =IF(D119=0,"",SUM(F119,-TODAY())) ->  | J119: =IF(I119=0,"",SUM(I119,-TODAY())) -> 
A120: =SUM(A119,1) -> 119 | F120: =IF(D120=0,"",D120+29) ->  | H120: =IF(D120=0,"",SUM(F120,-TODAY())) ->  | J120: =IF(I120=0,"",SUM(I120,-TODAY())) -> 
A121: =SUM(A120,1) -> 120 | F121: =IF(D121=0,"",D121+29) ->  | H121: =IF(D121=0,"",SUM(F121,-TODAY())) ->  | J121: =IF(I121=0,"",SUM(I121,-TODAY())) -> 
A122: =SUM(A121,1) -> 121 | F122: =IF(D122=0,"",D122+29) ->  | H122: =IF(D122=0,"",SUM(F122,-TODAY())) ->  | J122: =IF(I122=0,"",SUM(I122,-TODAY())) -> 
A123: =SUM(A122,1) -> 122 | F123: =IF(D123=0,"",D123+29) ->  | H123: =IF(D123=0,"",SUM(F123,-TODAY())) ->  | J123: =IF(I123=0,"",SUM(I123,-TODAY())) -> 
A124: =SUM(A123,1) -> 123 | F124: =IF(D124=0,"",D124+29) ->  | H124: =IF(D124=0,"",SUM(F124,-TODAY())) ->  | J124: =IF(I124=0,"",SUM(I124,-TODAY())) -> 
A125: =SUM(A124,1) -> 124 | F125: =IF(D125=0,"",D125+29) ->  | H125: =IF(D125=0,"",SUM(F125,-TODAY())) ->  | J125: =IF(I125=0,"",SUM(I125,-TODAY())) -> 
A126: =SUM(A125,1) -> 125 | F126: =IF(D126=0,"",D126+29) ->  | H126: =IF(D126=0,"",SUM(F126,-TODAY())) ->  | J126: =IF(I126=0,"",SUM(I126,-TODAY())) -> 
A127: =SUM(A126,1) -> 126 | F127: =IF(D127=0,"",D127+29) ->  | H127: =IF(D127=0,"",SUM(F127,-TODAY())) ->  | J127: =IF(I127=0,"",SUM(I127,-TODAY())) -> 
A128: =SUM(A127,1) -> 127 | F128: =IF(D128=0,"",D128+29) ->  | H128: =IF(D128=0,"",SUM(F128,-TODAY())) ->  | J128: =IF(I128=0,"",SUM(I128,-TODAY())) -> 
A129: =SUM(A128,1) -> 128 | F129: =IF(D129=0,"",D129+29) ->  | H129: =IF(D129=0,"",SUM(F129,-TODAY())) ->  | J129: =IF(I129=0,"",SUM(I129,-TODAY())) -> 
A130: =SUM(A129,1) -> 129 | F130: =IF(D130=0,"",D130+29) ->  | H130: =IF(D130=0,"",SUM(F130,-TODAY())) ->  | J130: =IF(I130=0,"",SUM(I130,-TODAY())) -> 
A131: =SUM(A130,1) -> 130 | F131: =IF(D131=0,"",D131+29) ->  | H131: =IF(D131=0,"",SUM(F131,-TODAY())) ->  | J131: =IF(I131=0,"",SUM(I131,-TODAY())) -> 
A132: =SUM(A131,1) -> 131 | F132: =IF(D132=0,"",D132+29) ->  | H132: =IF(D132=0,"",SUM(F132,-TODAY())) ->  | J132: =IF(I132=0,"",SUM(I132,-TODAY())) -> 
A133: =SUM(A132,1) -> 132 | F133: =IF(D133=0,"",D133+29) ->  | H133: =IF(D133=0,"",SUM(F133,-TODAY())) ->  | J133: =IF(I133=0,"",SUM(I133,-TODAY())) -> 
A134: =SUM(A133,1) -> 133 | F134: =IF(D134=0,"",D134+29) ->  | H134: =IF(D134=0,"",SUM(F134,-TODAY())) ->  | J134: =IF(I134=0,"",SUM(I134,-TODAY())) -> 
A135: =SUM(A134,1) -> 134 | F135: =IF(D135=0,"",D135+29) ->  | H135: =IF(D135=0,"",SUM(F135,-TODAY())) ->  | J135: =IF(I135=0,"",SUM(I135,-TODAY())) -> 
A136: =SUM(A135,1) -> 135 | F136: =IF(D136=0,"",D136+29) ->  | H136: =IF(D136=0,"",SUM(F136,-TODAY())) ->  | J136: =IF(I136=0,"",SUM(I136,-TODAY())) -> 
A137: =SUM(A136,1) -> 136 | F137: =IF(D137=0,"",D137+29) ->  | H137: =IF(D137=0,"",SUM(F137,-TODAY())) ->  | J137: =IF(I137=0,"",SUM(I137,-TODAY())) -> 
A138: =SUM(A137,1) -> 137 | F138: =IF(D138=0,"",D138+29) ->  | H138: =IF(D138=0,"",SUM(F138,-TODAY())) ->  | J138: =IF(I138=0,"",SUM(I138,-TODAY())) -> 
A139: =SUM(A138,1) -> 138 | F139: =IF(D139=0,"",D139+29) ->  | H139: =IF(D139=0,"",SUM(F139,-TODAY())) ->  | J139: =IF(I139=0,"",SUM(I139,-TODAY())) -> 
A140: =SUM(A139,1) -> 139 | F140: =IF(D140=0,"",D140+29) ->  | H140: =IF(D140=0,"",SUM(F140,-TODAY())) ->  | J140: =IF(I140=0,"",SUM(I140,-TODAY())) -> 
A141: =SUM(A140,1) -> 140 | F141: =IF(D141=0,"",D141+29) ->  | H141: =IF(D141=0,"",SUM(F141,-TODAY())) ->  | J141: =IF(I141=0,"",SUM(I141,-TODAY())) -> 
A142: =SUM(A141,1) -> 141 | F142: =IF(D142=0,"",D142+29) ->  | H142: =IF(D142=0,"",SUM(F142,-TODAY())) ->  | J142: =IF(I142=0,"",SUM(I142,-TODAY())) -> 
A143: =SUM(A142,1) -> 142 | F143: =IF(D143=0,"",D143+29) ->  | H143: =IF(D143=0,"",SUM(F143,-TODAY())) ->  | J143: =IF(I143=0,"",SUM(I143,-TODAY())) -> 
A144: =SUM(A143,1) -> 143 | F144: =IF(D144=0,"",D144+29) ->  | H144: =IF(D144=0,"",SUM(F144,-TODAY())) ->  | J144: =IF(I144=0,"",SUM(I144,-TODAY())) -> 
A145: =SUM(A144,1) -> 144 | F145: =IF(D145=0,"",D145+29) ->  | H145: =IF(D145=0,"",SUM(F145,-TODAY())) ->  | J145: =IF(I145=0,"",SUM(I145,-TODAY())) -> 
A146: =SUM(A145,1) -> 145 | F146: =IF(D146=0,"",D146+29) ->  | H146: =IF(D146=0,"",SUM(F146,-TODAY())) ->  | J146: =IF(I146=0,"",SUM(I146,-TODAY())) -> 
A147: =SUM(A146,1) -> 146 | F147: =IF(D147=0,"",D147+29) ->  | H147: =IF(D147=0,"",SUM(F147,-TODAY())) ->  | J147: =IF(I147=0,"",SUM(I147,-TODAY())) -> 
A148: =SUM(A147,1) -> 147 | F148: =IF(D148=0,"",D148+29) ->  | H148: =IF(D148=0,"",SUM(F148,-TODAY())) ->  | J148: =IF(I148=0,"",SUM(I148,-TODAY())) -> 
A149: =SUM(A148,1) -> 148 | F149: =IF(D149=0,"",D149+29) ->  | H149: =IF(D149=0,"",SUM(F149,-TODAY())) ->  | J149: =IF(I149=0,"",SUM(I149,-TODAY())) -> 
A150: =SUM(A149,1) -> 149 | F150: =IF(D150=0,"",D150+29) ->  | H150: =IF(D150=0,"",SUM(F150,-TODAY())) ->  | J150: =IF(I150=0,"",SUM(I150,-TODAY())) -> 
A151: =SUM(A150,1) -> 150 | F151: =IF(D151=0,"",D151+29) ->  | H151: =IF(D151=0,"",SUM(F151,-TODAY())) ->  | J151: =IF(I151=0,"",SUM(I151,-TODAY())) -> 

Sheet Архив
A1: № | B1: Номер Документа | C1: ФИО заявителя | D1: Дата поступления | E1: Исполнитель | F1: Срок исполнения | G1: Дата ответа | H1: Примечания
A2: =SUM(A1,1) -> 1 | F2: =IF(D2=0,"",D2+29) -> 
A3: 2 | F3: =IF(D3=0,"",D3+29) -> 
A4: 3 | F4: =IF(D4=0,"",D4+29) -> 
A5: 4 | F5: =IF(D5=0,"",D5+29) -> 
A6: 5 | F6: =IF(D6=0,"",D6+29) -> 
A7: 6 | F7: =IF(D7=0,"",D7+29) -> 
A8: 7 | F8: =IF(D8=0,"",D8+29) -> 
A9: 8 | F9: =IF(D9=0,"",D9+29) -> 
A10: 9 | F10: =IF(D10=0,"",D10+29) -> 
A11: 10 | F11: =IF(D11=0,"",D11+29) -> 
A12: 11 | F12: =IF(D12=0,"",D12+29) -> 
F13: =IF(D13=0,"",D13+29) -> 
F14: =IF(D14=0,"",D14+29) -> 
A15: 1 | F15: =IF(D15=0,"",D15+29) -> 
F16: =IF(D16=0,"",D16+29) -> 
A17: 1
A18: 2
A19: 3
A20: 4
A21: 5
A22: 6
A23: 7
A24: 8
A25: 9
A26: 10
A27: 11
A28: 12
A29: 13
A30: 14
A31: 15
A32: 16
A33: 17
A34: =SUM(A33,1) -> 18
A35: 19
A36: 20
A37: 21
A38: 22
A39: 23
A40: 24
A41: 25
A42: 26
A43: 27
A44: 28
A45: 29
A46: 30
A47: 31
A48: 32
A49: 33
A50: 34
A51: 35
A52: 36
A53: 37
A54: 38
A55: 39
A56: 40
A57: 41
A58: 42
A59: 43
A60: 44
A61: 45
A62: 46
A63: 47
A64: 48
A65: 49
A66: =SUM(A65,1) -> 50
A67: 51
A68: 52
A69: 53
A70: 54
A71: 55
A72: 56
A73: 57
A74: 58
A75: 59
A76: 60
A77: 61
A78: 62
A79: 63
A80: 64
A81: 65
A82: 66
A83: 67
A84: 68
A85: 69
A86: 70
A87: 71
A88: 72
A89: 73
A90: 74
A91: 75
A92: 76
A93: 77
A94: 78
A95: 79
A96: 80
A97: 81
A98: =SUM(A97,1) -> 82
A99: 83
A100: 84
A101: 85
A102: 86
A103: 87
A104: 88
A105: 89
A106: 90
A107: 91
A108: 92
A109: 93
A110: 94
A111: 95 | F111: =IF(D111=0,"",D111+29) -> 
A112: 96
A113: 97
A114: 98
A115: 99
A116: 100
A117: 101
A118: 102
A119: 103
A120: 104
A121: 105
A122: 106
A123: 107
A124: 108
A125: 109
A126: 110
A127: 111
A128: 112
A129: 113
A130: =SUM(A129,1) -> 114
A131: 115
A132: 116
A133: 117
A134: 118
A135: 119
A136: 120
A137: 121
A138: 122
A139: 123
A140: 124
A141: 125
A142: 126
A143: 127
A144: 128
A145: 129
A146: 130
A147: 131
A148: 132
A149: 133
A150: 134
A151: 135

Sheet Данные
B2: Исполнители
B4: Первый
B5: Второй
B6: Третий
B7: Четвертый
B8: Пятый
B9: Шестой
B10: Первый
B11: Второй
B12: Третий
B13: Четвертый
B14: Пятый
B15: Шестой
B16: Первый
B17: Второй
B18: Третий
B19: Четвертый
B20: Пятый
B21: Шестой
B22: Первый
B23: Второй
B24: Третий
B25: Четвертый
B26: Первый
B27: Второй
B28: Третий
B29: Четвертый
B30: Пятый
B31: Шестой

Sheet Пример
